fUSD/lending_fUSD_20250521
["ID","MTS","AMOUNT","RATE_DAILY","PERIOD"]
[361796787,1747809040335,-312.625073,0.0003499,7]
[361796788,1747809040346,-167.501493,0.0003499,7]
[361796789,1747809040355,-167.501493,0.0003499,7]
[361796790,1747809040365,-77.15659,0.0003499,7]
[361796793,1747809041429,-73.84341,0.0003499,7]
[361796794,1747809041439,-162.029528,0.0003499,7]
[361796795,1747809041451,-151.0,0.0003499,7]
[361796796,1747809041461,-133.48706202,0.0003499,7]
[361796797,1747809041480,-81.56675598,0.0003499,7]
[361796798,1747809041491,-151.0,0.0003499,7]
[361796799,1747809041502,-68.35711282,0.0003499,7]
[361796800,1747809041515,-82.64288718,0.0003499,7]
[361796801,1747809041525,-152.873619,0.0003499,7]
[361796802,1747809041535,-151.0,0.0003499,7]
[361796803,1747809041545,-151.0,0.0003499,7]
[361796804,1747809041556,-151.0,0.0003499,7]
[361796805,1747809041566,-151.0,0.0003499,7]
[361796806,1747809041575,-151.0,0.0003499,7]
[361796807,1747809041585,-151.0,0.0003499,7]
[361796808,1747809041594,-151.0,0.0003499,7]
[361796809,1747809041604,-151.0,0.0003499,7]
[361796810,1747809041614,-151.0,0.0003499,7]
[361796811,1747809041624,-151.0,0.0003499,7]
[361796812,1747809041634,-279.374327,0.0003499,7]
[361796813,1747809041644,-151.0,0.0003499,7]
[361796814,1747809041654,-151.0,0.0003499,7]
[361796815,1747809041663,-151.0,0.0003499,7]
[361796816,1747809041673,-151.0,0.0003499,7]
[361796817,1747809041683,-151.0,0.0003499,7]
[361796818,1747809041693,-151.0,0.0003499,7]
[361796819,1747809041704,-151.0,0.0003499,7]
[361796820,1747809041713,-151.0,0.0003499,7]
[361796821,1747809041723,-151.0,0.0003499,7]
[361796822,1747809041732,-151.0,0.0003499,7]
[361796823,1747809041742,-151.0,0.0003499,7]
[361796824,1747809041751,-1914.23458,0.0003499,7]
[361796825,1747809041761,-1914.23458,0.0003499,7]
[361796826,1747809041770,-151.0,0.0003499,7]
[361796827,1747809041779,-151.0,0.0003499,7]
[361796828,1747809041789,-11076.4277677,0.0003499,2]
[361796829,1747809041798,-151.0,0.0003499,7]
[361796830,1747809041807,-151.0,0.0003499,7]
[361796831,1747809041817,-151.0,0.0003499,7]
[361796832,1747809041826,-156.18549,0.0003499,7]
[361796833,1747809041836,-151.0,0.0003499,7]
[361796834,1747809041846,-151.0,0.0003499,7]
[361796835,1747809041855,-151.0,0.0003499,7]
[361796836,1747809041864,-1600.70560393,0.0003499,2]
[361796842,1747809043127,-624.27439607,0.0003499,2]
[361796843,1747809043136,-87.84996193,0.00034999,2]
[361796844,1747809043148,-777.78,0.00034999,2]
[361796845,1747809044328,-634.57835052,0.00034999,2]
[361796847,1747809044379,-1336.10574739,0.00034999,2]
[361796851,1747809045620,-289.15992648,0.00034999,2]
[361796852,1747809045631,-141.94722228,0.00034999,7]
[361796853,1747809045709,-358.05277772,0.00034999,7]
[361796854,1747809046063,-500.0,0.00034999,7]
[361796855,1747809046074,-500.0,0.00034999,7]
[361796856,1747809046085,-500.0,0.00034999,7]
[361796857,1747809046095,-500.0,0.00034999,7]
[361796858,1747809046106,-500.0,0.00034999,7]
[361796859,1747809046116,-497.30976675,0.00034999,7]
[361796860,1747809046126,-500.0,0.00034999,7]
[361796861,1747809046136,-500.0,0.00034999,7]
[361796862,1747809046145,-500.0,0.00034999,7]
[361796863,1747809046155,-177.91743699,0.00035,2]
[361796864,1747809046165,-60812.36081795,0.00035,2]
[361796868,1747809046193,-652.93525272,0.00035,2]
[361796869,1747809046209,-292.82165815,0.00035,2]
[361796870,1747809046234,-1076.5,0.00035,2]
[361796871,1747809046266,-939.96876694,0.00035,2]
[361796875,1747809046356,-38466.7827838,0.00035,2]
[361796877,1747809046376,-133785.37993095,0.00035,2]
[361796879,1747809046389,-1255.38,0.00035,5]
[361796881,1747809046400,-151.0,0.00035,7]
[361796883,1747809046411,-151.0,0.00035,7]
[361796886,1747809046423,-151.0,0.00035,7]
[361796888,1747809046434,-244.327505,0.00035,7]
[361796890,1747809046446,-151.0,0.00035,7]
[361796892,1747809046459,-151.0,0.00035,7]
[361796894,1747809046471,-151.0,0.00035,7]
[361796896,1747809046481,-151.0,0.00035,7]
[361796898,1747809046491,-151.0,0.00035,7]
[361796900,1747809046502,-151.0,0.00035,7]
[361796901,1747809046513,-151.0,0.00035,7]
[361796903,1747809046523,-151.0,0.00035,7]
[361796905,1747809046533,-151.0,0.00035,7]
[361796907,1747809046544,-151.0,0.00035,7]
[361796909,1747809046554,-151.0,0.00035,7]
[361796911,1747809046563,-176.32348,0.00035,7]
[361796913,1747809046573,-151.0,0.00035,7]
[361796915,1747809046583,-151.0,0.00035,7]
[361796917,1747809046594,-151.0,0.00035,7]
[361796919,1747809046604,-151.0,0.00035,7]
[361796921,1747809046614,-151.0,0.00035,7]
[361796923,1747809046624,-151.0,0.00035,7]
[361796925,1747809046635,-151.0,0.00035,7]
[361796927,1747809046645,-151.0,0.00035,7]
[361796929,1747809046655,-175.859184,0.00035,7]
[361796931,1747809046665,-312.625073,0.00035,7]
[361796933,1747809046675,-312.625073,0.00035,7]
[361796935,1747809046685,-312.625073,0.00035,7]
[361796937,1747809046695,-312.625073,0.00035,7]
[361796939,1747809046707,-167.501493,0.00035,7]
[361796941,1747809046717,-167.501493,0.00035,7]
[361796943,1747809046728,-167.501493,0.00035,7]
[361796945,1747809046739,-167.501493,0.00035,7]
[361796947,1747809046749,-151.0,0.00035,7]
[361796949,1747809046760,-151.0,0.00035,7]
[361796952,1747809046771,-151.0,0.00035,7]
[361796954,1747809046782,-151.0,0.00035,7]
[361796956,1747809046798,-245.327588,0.00035,7]
[361796958,1747809046808,-151.0,0.00035,7]
[361796960,1747809046818,-151.0,0.00035,7]
[361796963,1747809046829,-201.893051,0.00035,7]
[361796965,1747809046839,-213.636202,0.00035,7]
[361796967,1747809046848,-279.374327,0.00035,7]
[361796969,1747809046859,-279.374327,0.00035,7]
[361796971,1747809046868,-151.0,0.00035,7]
[361796973,1747809046879,-151.0,0.00035,7]
[361796975,1747809046891,-151.0,0.00035,7]
[361796977,1747809046902,-151.0,0.00035,7]
[361796979,1747809046913,-151.0,0.00035,7]
[361796981,1747809046923,-151.0,0.00035,7]
[361796983,1747809046934,-151.0,0.00035,7]
[361796985,1747809046945,-151.0,0.00035,7]
[361796987,1747809046958,-151.0,0.00035,7]
[361796990,1747809046970,-1914.23458,0.00035,7]
[361796992,1747809046981,-1914.23458,0.00035,7]
[361796994,1747809046992,-151.0,0.00035,7]
[361796996,1747809047003,-151.0,0.00035,7]
[361796998,1747809047014,-151.0,0.00035,7]
[361797000,1747809047024,-151.0,0.00035,7]
[361797002,1747809047036,-151.0,0.00035,7]
[361797005,1747809047047,-151.0,0.00035,7]
[361797007,1747809047058,-211.057507,0.00035,7]
[361797009,1747809047070,-151.0,0.00035,7]
[361797011,1747809047082,-151.0,0.00035,7]
[361797013,1747809047094,-151.0,0.00035,7]
[361797015,1747809047104,-151.0,0.00035,7]
[361797017,1747809047115,-151.0,0.00035,7]
[361797019,1747809047126,-151.0,0.00035,7]
[361797021,1747809047137,-154.884001,0.00035,7]
[361797023,1747809047148,-507.720306,0.00035,7]
[361797025,1747809047159,-507.720306,0.00035,7]
[361797027,1747809047170,-134988.63079798,0.00035,30]
[361797029,1747809047182,-146790.48677929,0.00035,30]
[361797655,1747809068099,412.338192,7.945e-05,2]
[361797656,1747809401474,154.57,0.00013699,2]
[361797657,1747809804473,900.0,0.0002,120]
[361797659,1747810009717,-200.0,0.00030549,117]
[361797660,1747810009741,-72.61649177,0.00031675,117]
[361797662,1747810087358,250.0,0.00028,2]
[361797663,1747810139559,336.4,0.00028,2]
[361797670,1747810168085,-500.0,0.00028276,2]
[361797671,1747810168108,-200.0,0.00029976,117]
[361797672,1747810168128,-200.0,0.00031104,117]
[361797680,1747810231842,-127.38350823,0.00031675,117]
[361797681,1747810231860,-200.0,0.00032065,117]
[361797682,1747810231872,-528.58,0.00032455,2]
[361797683,1747810231884,-200.0,0.00032831,117]
[361797684,1747810231897,-200.0,0.00032952,117]
[361797685,1747810231907,-302.32,0.00033304,2]
[361797686,1747810231917,-302.0,0.00033304,2]
[361797687,1747810231928,-1015.147602,0.00033949,4]
[361797688,1747810231939,-162.8,0.00034078,2]
[361797689,1747810231950,-651.33,0.000341,2]
[361797690,1747810231962,-1734.0,0.000341,7]
[361797712,1747810232568,-276.59,0.00034154,120]
[361797715,1747810232603,-155.19,0.00034271,2]
[361797717,1747810232614,-999.99,0.00034271,2]
[361797718,1747810232624,-155.19,0.00034287,2]
[361797719,1747810232634,-155.19,0.00034302,2]
[361797720,1747810232645,-155.19,0.00034318,2]
[361797721,1747810232655,-436.28794745,0.00034329,2]
[361797722,1747810232789,-757.55051937,0.00034329,2]
[361797723,1747810232802,-478.31588386,0.00034329,2]
[361797724,1747810232828,-2155.68293364,0.00034329,2]
[361797725,1747810232840,-460.96271568,0.00034329,2]
[361797726,1747810232851,-155.19,0.00034333,2]
[361797727,1747810232863,-1000.0,0.00034336,2]
[361797728,1747810232874,-155.19,0.00034349,2]
[361797729,1747810232883,-155.19,0.00034365,2]
[361797730,1747810232893,-155.19,0.0003438,2]
[361797731,1747810232903,-465.49,0.00034386,2]
[361797732,1747810232913,-155.19,0.00034396,2]
[361797733,1747810232923,-155.19,0.00034411,2]
[361797734,1747810232934,-155.19,0.00034427,2]
[361797735,1747810232944,-77.81067718,0.00034442,2]
[361797736,1747810233014,-77.37932282,0.00034442,2]
[361797737,1747810233025,-166.52,0.00034454,2]
[361797738,1747810233035,-85.85067718,0.00034465,2]
[361797741,1747810237915,-381.48,0.00034231,2]
[361797742,1747810237958,-1369.38,0.00034231,2]
[361797743,1747810237970,-457.8,0.00034521,2]
[361797744,1747810237980,-353.05,0.00034521,2]
[361797745,1747810237990,-202.266,0.00034521,2]
[361797746,1747810238076,-1661.534,0.00034521,2]
[361797747,1747810238086,-150.34,0.00034521,2]
[361797748,1747810238097,-150.34,0.00034521,2]
[361797749,1747810238108,-150.34,0.00034521,2]
[361797751,1747810238118,-150.16,0.00034521,2]
[361797753,1747810238128,-339.63,0.00034521,2]
[361797755,1747810238138,-528.58,0.00034719,2]
[361797757,1747810238147,-200.0,0.0003472,10]
[361797758,1747810238157,-500.0,0.00034778,2]
[361797760,1747810238167,-200.0,0.00034843,117]
[361797762,1747810238177,-762.51,0.00034869,40]
[361797764,1747810238187,-237.16794772,0.000349,31]
[361797766,1747810238196,-804.92,0.00034932,2]
[361797767,1747810238207,-305.34,0.00034949,2]
[361797768,1747810238216,-301.23,0.00034949,2]
[361797769,1747810238225,-300.7,0.00034949,2]
[361797770,1747810238234,-303.04,0.00034949,2]
[361797772,1747810238244,-302.56,0.00034949,2]
[361797775,1747810238253,-1000.0,0.00034999,2]
[361797777,1747810238263,-1265.97,0.00035,5]
[361797779,1747810238273,-500.0,0.00035,7]
[361797780,1747810238283,-500.0,0.00035,7]
[361797781,1747810238292,-830.91,0.00035,4]
[361797782,1747810238302,-10525.55205227,0.00035,30]
[361797784,1747810240072,-427.39638274,0.00035,30]
[361797785,1747810240084,-5790.13912912,0.00035,30]
[361797786,1747810240095,-3643.4261922,0.00035,30]
[361797787,1747810240121,-3585.1635728,0.00035,30]
[361797788,1747810240144,-907.63342253,0.00035,30]
[361797789,1747810240155,-31119.2687186,0.00035,30]
[361797790,1747810240164,-1261.73128141,0.00035,30]
[361797791,1747810240551,-1028.1522,0.00035,30]
[361797801,1747810244753,-170.04,0.00033699,2]
[361797803,1747810244763,-218.0,0.00034279,2]
[361797805,1747810244774,-1402.64889644,0.00035,30]
[361797808,1747810244790,-1631.64817584,0.00035,30]
[361797810,1747810244892,-406.07062694,0.00035,30]
[361797811,1747810244906,-1040.94,0.00035,30]
[361797812,1747810244917,-4752.1120715,0.00035,30]
[361797813,1747810244947,-383.30164025,0.00035,30]
[361797814,1747810244959,-649.83334176,0.00035,30]
[361797815,1747810245092,-313.70316042,0.00035,30]
[361797820,1747810245840,-30612.60019917,0.00035,30]
[361797821,1747810245850,-150.052114,0.00035198,120]
[361797822,1747810245861,-305.86,0.00035231,2]
[361797823,1747810245871,-305.91,0.00035231,2]
[361797824,1747810245881,-156.78,0.00035299,2]
[361797825,1747810245891,-204.11,0.000353,2]
[361797826,1747810245901,-512.87,0.000353,2]
[361797827,1747810245911,-304.3,0.00035307,2]
[361797828,1747810245921,-303.13,0.00035307,2]
[361797829,1747810245931,-847.50845498,0.0003532,8]
[361797830,1747810245941,-150.0,0.00035347,2]
[361797831,1747810245951,-150.0,0.00035349,2]
[361797832,1747810245961,-150.0,0.00035353,2]
[361797833,1747810245974,-150.0,0.0003536,2]
[361797834,1747810245985,-250.0,0.00035363,2]
[361797835,1747810245995,-150.0,0.00035376,2]
[361797836,1747810246006,-150.0,0.00035378,2]
[361797837,1747810246015,-150.0,0.00035387,2]
[361797838,1747810246025,-150.0,0.00035387,2]
[361797839,1747810246035,-151.06922865,0.00035388,2]
[361797840,1747810246045,-150.0,0.00035392,2]
[361797841,1747810246054,-150.0,0.00035396,2]
[361797842,1747810246064,-150.0,0.00035396,2]
[361797843,1747810246074,-150.0,0.00035402,2]
[361797844,1747810246083,-154.88794324,0.00035404,2]
[361797845,1747810246093,-150.0,0.00035411,2]
[361797846,1747810246103,-150.0,0.00035424,2]
[361797847,1747810246114,-500.0,0.00035426,3]
[361797848,1747810246124,-150.0,0.0003543,2]
[361797849,1747810246134,-150.0,0.0003543,2]
[361797850,1747810246143,-150.0,0.00035434,2]
[361797851,1747810246153,-1000.0,0.00035446,2]
[361797852,1747810246164,-150.0,0.00035449,2]
[361797853,1747810246174,-150.0,0.00035452,2]
[361797854,1747810246184,-150.0,0.00035462,2]
[361797855,1747810246194,-150.0,0.00035471,2]
[361797856,1747810246204,-150.0,0.00035473,2]
[361797858,1747810246602,-150.0,0.00035486,2]
[361797859,1747810246743,-169.49,0.0003549,9]
[361797860,1747810246754,-150.0,0.00035495,2]
[361797861,1747810246764,-156.14290651,0.00035496,2]
[361797862,1747810246774,-150.052114,0.00035498,120]
[361797863,1747810246787,-150.0,0.00035499,2]
[361797864,1747810246797,-2500.37918911,0.000355,2]
[361797865,1747810246807,-150.0,0.00035505,2]
[361797866,1747810246817,-150.0,0.00035506,2]
[361797867,1747810246828,-207.7161,0.00035516,10]
[361797868,1747810246838,-1025.8851582,0.00035516,2]
[361797869,1747810246848,-160.27372137,0.00035516,15]
[361797870,1747810246858,-150.0,0.00035523,2]
[361797871,1747810246869,-150.0,0.0003553,2]
[361797872,1747810246878,-150.0,0.00035531,2]
[361797873,1747810246889,-150.0,0.00035532,2]
[361797874,1747810246900,-2500.37918905,0.00035532,2]
[361797875,1747810246910,-150.0,0.00035534,2]
[361797876,1747810246919,-150.0,0.00035536,2]
[361797877,1747810246929,-2021.263664,0.00035542,120]
[361797878,1747810246939,-500.0,0.00035542,120]
[361797879,1747810246949,-2500.37918905,0.00035564,2]
[361797880,1747810246959,-150.0,0.00035566,2]
[361797881,1747810246969,-275.95977431,0.00035573,2]
[361797882,1747810246979,-150.0,0.00035579,2]
[361797883,1747810246990,-169.49,0.0003559,9]
[361797884,1747810247000,-500.0,0.00035595,7]
[361797885,1747810247010,-500.0,0.00035595,7]
[361797886,1747810247021,-500.0,0.00035595,7]
[361797887,1747810247031,-500.0,0.00035595,7]
[361797888,1747810247041,-299.73097667,0.00035595,7]
[361797889,1747810247051,-23974.9547396,0.00035595,2]
[361797890,1747810247061,-29765.38892561,0.00035596,2]
[361797891,1747810247206,-8182.849433,0.00035596,2]
[361797892,1747810247218,-32370.49498627,0.00035596,2]
[361797893,1747810247230,-11367.72246016,0.00035596,2]
[361797894,1747810247254,-23203.97118096,0.00035596,2]
[361797895,1747810247264,-12726.90311941,0.00035596,2]
[361797896,1747810247276,-10811.57999999,0.00035596,2]
[361797897,1747810247295,-1306.55,0.00035596,2]
[361797898,1747810247327,-413.69196566,0.00035596,2]
[361797899,1747810338067,176.35458,0.00029453,2]
[361797900,1747810423603,154.57,0.00013699,2]
[361797901,1747810488797,787.90772942,0.00027,120]
[361797902,1747810855422,1288.65132197,0.00028,2]
[361797903,1747811103151,1006.71,0.00025,30]
[361797904,1747811103693,197.1,0.00023,120]
[361797916,1747811418015,154.57,0.00013699,2]
[361797918,1747811432500,-200.0,0.00029331,117]
[361797919,1747811432511,-200.0,0.00030822,117]
[361797920,1747811432521,-160.60790814,0.00031665,2]
[361797921,1747811432532,-250.0,0.00031743,2]
[361797922,1747811432543,-200.0,0.00031743,117]
[361797923,1747811432554,-250.0,0.00031743,2]
[361797924,1747811432564,-627.303,0.00031765,2]
[361797925,1747811432575,-200.0,0.00032264,117]
[361797926,1747811432586,-200.0,0.00032264,117]
[361797927,1747811432596,-508.94,0.00032562,2]
[361797928,1747811432606,-212.0,0.0003341,30]
[361797929,1747811432617,-304.97,0.00033834,2]
[361797930,1747811432627,-507.29034498,0.00033871,7]
[361797931,1747811432639,-500.0,0.00034164,60]
[361797932,1747811432649,-212.0,0.0003421,30]
[361797933,1747811432661,-159.91,0.00034271,120]
[361797934,1747811432671,-1000.0,0.00034327,2]
[361797935,1747811432681,-150.052116,0.00034498,120]
[361797936,1747811432692,-946.335708,0.00034528,4]
[361797937,1747811432703,-150.052116,0.00034798,120]
[361797938,1747811432714,-508.94,0.00034826,2]
[361797939,1747811432724,-652.0,0.00034878,3]
[361797940,1747811432735,-10000.0,0.0003488,120]
[361797941,1747811432744,-2808.28266865,0.000349,7]
[361797942,1747811432767,-763.70496227,0.000349,7]
[361797943,1747811432779,-237.16794772,0.000349,31]
[361797944,1747811432789,-1237.71,0.00034932,2]
[361797945,1747811432800,-610.008,0.00034969,40]
[361797946,1747811432811,-212.0,0.0003502,30]
[361797947,1747811432822,-33.14909001,0.00035198,120]
[361797949,1747811438162,-116.90302599,0.00035198,120]
[361797950,1747811438172,-305.15,0.00035198,2]
[361797951,1747811438182,-304.8,0.00035239,2]
[361797952,1747811438195,-301.4,0.00035239,2]
[361797953,1747811438205,-500.0,0.0003526,60]
[361797954,1747811438215,-150.0,0.00035323,2]
[361797955,1747811438226,-281.01,0.00035342,2]
[361797956,1747811438237,-453.03,0.00035342,2]
[361797957,1747811438247,-170.1,0.00035342,2]
[361797958,1747811438256,-702.64,0.00035342,2]
[361797959,1747811438267,-325.48,0.00035342,2]
[361797960,1747811438276,-170.1,0.00035342,2]
[361797961,1747811438286,-162.8,0.00035342,2]
[361797962,1747811438295,-162.8,0.00035342,2]
[361797964,1747811438306,-170.1,0.00035342,2]
[361797965,1747811438316,-1507.2582,0.000354,2]
[361797966,1747811438325,-317.8235,0.000354,2]
[361797967,1747811438335,-500.0,0.00035452,2]
[361797968,1747811438345,-776.0,0.00035452,2]
[361797969,1747811438355,-1234.35,0.00035452,5]
[361797970,1747811438364,-1257.78,0.00035452,5]
[361797971,1747811438374,-150.05216,0.00035498,120]
[361797972,1747811438383,-9680.42311401,0.000355,7]
[361797997,1747811445470,-69.66457839,0.000355,7]
[361797998,1747811445483,-305.15,0.000355,7]
[361797999,1747811445495,-5474.64456,0.000355,7]
[361798000,1747811445567,-672.0,0.000355,7]
[361798033,1747811446930,-5125.0,0.000355,7]
[361798036,1747811446953,-6536.940145,0.000355,7]
[361798038,1747811446965,-38308.92066945,0.000355,7]
[361798041,1747811446975,-1563.339,0.00035505,2]
[361798043,1747811446986,-1174.70700048,0.00035506,2]
[361798045,1747811446995,-168.14418544,0.00035516,2]
[361798046,1747811447005,-1750.26543238,0.00035516,2]
[361798049,1747811447015,-160.27372137,0.00035516,15]
[361798051,1747811447024,-156.14290651,0.00035516,2]
[361798053,1747811447035,-1174.7070004,0.00035538,2]
[361798055,1747811447044,-150.0,0.00035543,2]
[361798057,1747811447054,-1750.26543233,0.00035546,2]
[361798059,1747811447064,-503.862852,0.00035549,120]
[361798061,1747811447074,-1174.7070004,0.00035569,2]
[361798063,1747811447084,-1750.26543233,0.00035577,2]
[361798065,1747811447093,-1000.0,0.00035595,2]
[361798067,1747811447103,-17646.0596199,0.00035596,2]
[361798069,1747811447113,-249.0,0.00035596,7]
[361798071,1747811447123,-1260.43282999,0.00035596,2]
[361798073,1747811447133,-5006.9540733,0.000356,15]
[361798075,1747811447142,-1227.06,0.000356,5]
[361798077,1747811447152,-844.10834224,0.000356,13]
[361798079,1747811447161,-1174.7070004,0.00035601,2]
[361798081,1747811447171,-3000.0,0.00035605,2]
[361798083,1747811447181,-2825.82227393,0.00035605,2]
[361798085,1747811447193,-10083.4626399,0.00035606,2]
[361798087,1747811447203,-155.331478,0.00035606,7]
[361798089,1747811447213,-154.793342,0.00035606,7]
[361798091,1747811447222,-151.0,0.00035606,7]
[361798093,1747811447233,-151.0,0.00035606,7]
[361798096,1747811447242,-151.0,0.00035606,7]
[361798098,1747811447253,-154.107414,0.00035606,7]
[361798101,1747811447263,-151.0,0.00035606,7]
[361798104,1747811447273,-151.0,0.00035606,7]
[361798106,1747811447282,-456.948275,0.00035606,7]
[361798109,1747811447292,-456.948275,0.00035606,7]
[361798112,1747811447303,-151.0,0.00035606,7]
[361798114,1747811447312,-151.0,0.00035606,7]
[361798117,1747811447322,-151.0,0.00035606,7]
[361798120,1747811447331,-237.468178,0.00035606,7]
[361798123,1747811447341,-237.468178,0.00035606,7]
[361798125,1747811447351,-151.0,0.00035606,7]
[361798128,1747811447361,-151.0,0.00035606,7]
[361798131,1747811447372,-170.833624,0.00035606,7]
[361798135,1747811447381,-1531.387664,0.00035606,7]
[361798137,1747811447391,-1531.387664,0.00035606,7]
[361798139,1747811447401,-151.0,0.00035606,7]
[361798141,1747811447410,-151.0,0.00035606,7]
[361798143,1747811447419,-1750.26543233,0.00035607,2]
[361798144,1747811447429,-12247.85306292,0.00035608,2]
[361798149,1747811447464,-281.66,0.00034605,2]
[361798151,1747811447475,-4130.75836848,0.00035608,2]
[361798154,1747811447488,-569.722188,0.00035608,2]
[361798204,1747811447946,-444.80587278,0.00035608,2]
[361798207,1747811447967,-155.0,0.00035608,2]
[361798209,1747811447977,-2612.8530369,0.0003561,2]
[361798211,1747811447987,-267.9325,0.00035615,2]
[361798213,1747811447997,-150.0,0.00035615,2]
[361798215,1747811448007,-2183.59217088,0.00035615,2]
[361798217,1747811448019,-2598.7,0.00035615,2]
[361798219,1747811448032,-217.70782912,0.00035615,2]
[361798222,1747811448042,-411.45671238,0.00035615,7]
[361798223,1747811448052,-500.0,0.00035615,7]
[361798225,1747811448062,-209.28091893,0.00035615,7]
[361798228,1747811448072,-177.91743698,0.00035616,2]
[361798229,1747811448082,-153.0,0.00035616,5]
[361798231,1747811448093,-3092.83710259,0.00035616,2]
[361798234,1747811448107,-10728.79825984,0.00035616,2]
[361798236,1747811448120,-2153.85453279,0.00035616,2]
[361798459,1747811771739,2003.84022762,0.00028,2]
[361798460,1747811798874,150.0,0.00028,2]
[361798461,1747811983575,-736.0,0.00042854,120]
[361798462,1747811984108,-4197.17612299,0.00042854,120]
[361798463,1747811984135,-420.0,0.00042854,60]
[361798464,1747811984161,-518.01,0.00042854,60]
[361798465,1747811984189,-420.0,0.00042854,60]
[361798466,1747811984217,-420.0,0.00042854,60]
[361798467,1747811984245,-305.69,0.00042854,60]
[361798468,1747811984272,-420.0,0.00042854,60]
[361798469,1747811984299,-420.0,0.00042854,60]
[361798470,1747811984326,-304.03,0.00042854,60]
[361798471,1747811984352,-54841.84275352,0.00042854,120]
[361798472,1747811984381,-227.83669478,0.00042854,120]
[361798473,1747811984407,-180805.98042001,0.00042854,60]
[361798474,1747811984434,-185.6328279,0.00042854,120]
[361798475,1747811984461,-4563.0,0.00042854,120]
[361798476,1747811984487,-336.84675953,0.00042854,120]
[361798477,1747811984513,-336.84675953,0.00042854,120]
[361798478,1747811984540,-336.84675953,0.00042854,120]
[361798479,1747811984566,-200.0,0.00042854,120]
[361798480,1747811984591,-200.0,0.00042854,120]
[361798481,1747811984618,-183.0,0.00042854,120]
[361798482,1747811984644,-1760.17601602,0.00042854,120]
[361798483,1747811984672,-1760.17601602,0.00042854,120]
[361798484,1747811984700,-1760.17601602,0.00042854,120]
[361798485,1747811984726,-8971.64181844,0.00042854,120]
[361798486,1747811984752,-198.57359846,0.00042854,120]
[361798487,1747811984779,-500.0,0.00042854,120]
[361798488,1747811984806,-367.50824764,0.00042854,120]
[361798489,1747811984832,-199.40329086,0.00042854,60]
[361798490,1747811984859,-7744.43541,0.00042854,120]
[361798491,1747811984885,-2722.87,0.00042854,60]
[361798492,1747811984913,-2722.87,0.00042854,60]
[361798493,1747811984942,-2722.87,0.00042854,60]
[361798494,1747811984972,-2722.87,0.00042854,60]
[361798495,1747811984999,-2722.87,0.00042854,60]
[361798496,1747811985025,-2722.87,0.00042854,60]
[361798497,1747811985051,-2722.87,0.00042854,60]
[361798498,1747811985078,-2722.87,0.00042854,60]
[361798499,1747811985105,-2722.87,0.00042854,60]
[361798500,1747811985131,-2722.87,0.00042854,60]
[361798501,1747811985156,-2722.87,0.00042854,60]
[361798502,1747811985184,-2722.87,0.00042854,60]
[361798503,1747811985213,-2722.87,0.00042854,60]
[361798504,1747811985240,-2722.87,0.00042854,60]
[361798505,1747811985268,-2722.87,0.00042854,60]
[361798506,1747811985309,-2722.87,0.00042854,60]
[361798507,1747811985341,-2722.87,0.00042854,60]
[361798508,1747811985374,-2722.87,0.00042854,60]